bitfinex-derivatives/quotes_SOLF0:USTF0_20250224
["timestamp","ask_amount","ask_price","bid_price","bid_amount"]
[1740434903928,101.82475098,146.84,146.66,1.20732827]
[1740434904127,101.82475098,146.8,146.66,1.20732827]
[1740434904329,101.82475098,146.79,146.65,1.20732827]
[1740434904530,101.82475098,146.78,146.66,1.20732827]
[1740434904829,101.82475098,146.85,146.71,110.03978023]
[1740434905030,101.82475098,146.87,146.71,110.03978023]
[1740434905225,101.82475098,146.88,146.71,109.98953018]
[1740434905430,101.82475098,146.83,146.72,1.20755278]
[1740434905626,7.7774,146.89,146.72,1.20755278]
[1740434906026,3.9422,146.89,146.72,1.20755278]
[1740434906232,0.05015901,146.82,146.79,0.0462804]
[1740434906425,5.901e-05,146.82,146.79,0.0462804]
[1740434906626,178.2,147.08,146.79,191.0]
[1740434906831,101.82475098,146.97,146.77,178.2]
[1740434907032,101.82475098,146.96,146.78,1.20646488]
[1740434907235,101.82475098,146.93,146.78,1.20646488]
[1740434907531,101.82475098,146.9,146.78,1.20646488]
[1740434907734,0.04640938,146.87,146.84,0.04356725]
[1740434908137,101.82475098,146.86,146.84,0.04356725]
[1740434908331,101.87116036,146.87,146.84,0.04356725]
[1740434908529,101.82475098,146.85,146.74,6.8158]
[1740434908734,101.82475098,146.81,146.68,178.2]
[1740434908927,101.82475098,146.76,146.69,1.2076348]
[1740434909131,101.82475098,146.74,146.63,191.0]
[1740434909332,101.82475098,146.74,146.58,178.2]
[1740434909333,3.8651,146.85,146.64,1.20808169]
[1740434909531,101.82475098,146.74,146.59,1.2082454]
[1740434909726,0.04340216,146.7,146.67,0.04491835]
[1740434910140,6.821,146.64,146.59,1.20818431]
[1740434910338,101.82475098,146.61,146.57,1.20818431]
[1740434910538,101.82475098,146.59,146.55,109.98953018]
[1740434910732,101.82475098,146.65,146.55,109.98953018]
[1740434910937,101.82475098,146.61,146.55,109.98953018]
[1740434911132,101.82475098,146.58,146.56,53.81454809]
[1740434911337,4.1362,146.67,146.55,98.48023018]
[1740434911338,101.82475098,146.57,146.55,98.48023018]
[1740434911539,101.82475098,146.56,146.55,91.91106573]
[1740434912035,101.82475098,146.56,146.51,27.46095012]
[1740434912235,4.1362,146.67,146.54,0.04307986]
[1740434912429,0.04393271,146.57,146.54,0.04307986]
[1740434912634,101.82475098,146.55,146.51,27.46095012]
[1740434912834,101.82475098,146.52,146.51,5.02365012]
[1740434913037,101.82475098,146.52,146.51,5.012e-05]
[1740434913730,0.04538377,146.54,146.48,51.8568673]
[1740434914041,178.36538377,146.54,146.27,3.9547]
[1740434914338,178.36538377,146.54,146.25,178.32]
[1740434914531,178.32,146.54,146.29,6.8365]
[1740434914728,178.32,146.54,146.25,178.32]
[1740434914934,178.32,146.54,146.26,1.20164163]
[1740434915131,0.04553687,146.43,146.4,0.05074871]
[1740434915542,367.9400066,146.64,146.26,1.20164163]
[1740434915841,178.32,146.64,146.26,1.20164163]
[1740434916040,0.04512116,146.43,146.4,0.04909508]
[1740434916432,1.23040306,146.63,146.26,1.20164163]
[1740434916637,6.8243,146.57,146.26,1.20164163]
[1740434916839,0.04830399,146.43,146.4,0.04868806]
[1740434917038,0.04830399,146.43,146.26,1.20164163]
[1740434917231,69.29686208,146.61,146.26,1.20164163]
[1740434917436,69.29686208,146.61,146.4,0.05257796]
[1740434918042,1.874e-05,146.52,146.4,12.97784163]
[1740434918235,1.874e-05,146.52,146.51,6.8267]
[1740434918435,56.82548082,146.61,146.49,0.04711195]
[1740434918632,56.82548082,146.61,146.57,6.8237]
[1740434918835,25.97457312,146.71,146.4,11.7762]
[1740434919036,25.97457312,146.71,146.41,1.19967468]
[1740434919234,25.97457312,146.71,146.4,11.7762]
[1740434919737,0.04769223,146.57,146.54,0.04420703]
[1740434919940,9.223e-05,146.57,146.54,0.04420703]
[1740434920142,25.97457312,146.71,146.53,178.48]
[1740434920344,25.97457312,146.71,146.49,178.48]
[1740434920642,25.97457312,146.71,146.5,1.19973275]
[1740434921138,8.66781952,146.81,146.49,178.48]
[1740434921538,8.66781952,146.81,146.59,0.04845261]
[1740434921840,8.66781952,146.81,146.59,191.0]
[1740434922043,1.952e-05,146.81,146.6,34.0543]
[1740434922237,15.35208133,146.83,146.61,21.60890841]
[1740434922437,4.24438133,146.83,146.63,20.41]
[1740434922638,103.65846101,146.84,146.64,1.19890841]
[1740434922639,91.17054234,146.84,146.64,1.19890841]
[1740434922843,66.37494234,146.84,146.83,6.8118]
[1740434923041,66.37494234,146.84,146.77,178.44]
[1740434923346,43.37254234,146.84,146.77,178.44]
[1740434923541,128.59854403,146.85,146.78,1.19717935]
[1740434923748,84.54153193,146.87,146.78,1.19717935]
[1740434923935,178.44,147.24,146.78,1.19717935]
[1740434924146,1.97e-06,146.83,146.8,0.05092734]
[1740434924346,272.46009223,147.12,146.8,0.05092734]
[1740434924545,272.46009223,147.1,146.8,195.19717935]
[1740434924744,272.46009223,147.12,146.81,14.82247935]
[1740434924942,276.52439223,147.16,147.08,6.8001]
[1740434925141,272.46009223,147.15,147.09,1.35971174]
[1740434925543,272.46009223,147.1,146.89,178.28]
[1740434925748,272.46009223,147.04,146.89,178.28]
[1740434926048,272.46009223,147.03,146.92,6.8075]
[1740434926240,272.46009223,146.99,146.89,178.28]
[1740434926437,0.04906337,146.98,146.95,0.05195689]
[1740434926641,0.04906337,146.98,146.9,66.82634361]
[1740434926642,272.46009223,146.96,146.9,66.82634361]
[1740434926838,272.46009223,146.94,146.9,66.82634361]
[1740434927039,4.1325,147.08,146.9,66.82634361]
[1740434927240,272.46009223,146.92,146.9,54.08034361]
[1740434927446,272.46009223,146.91,146.78,178.28]
[1740434927640,272.46009223,146.9,146.78,178.28]
[1740434927850,272.46009223,146.96,146.78,178.28]
[1740434928047,225.00583033,147.01,146.97,109.08359469]
[1740434928246,225.00583033,147.0,146.97,109.08359469]
[1740434928445,225.00583033,147.02,146.97,109.08359469]
[1740434928846,225.00583033,146.98,146.97,64.6126383]
[1740434929049,4.1325,147.08,146.84,181.80599115]
[1740434929252,225.00583033,146.9,146.84,181.80599115]
[1740434929448,4.1325,147.08,146.96,0.04536908]
[1740434929845,225.00583033,146.99,146.84,181.80599115]
[1740434930253,3.9581,147.09,146.84,181.80599115]
[1740434930453,225.05007472,146.93,146.9,0.04493272]
[1740434930649,3.9581,147.09,146.84,181.80599115]
[1740434931052,225.05575515,146.93,146.9,0.04603519]
[1740434931256,0.04992482,146.93,146.9,0.04603519]
[1740434931461,3.9581,147.09,146.79,9.4795]
[1740434931656,225.00583033,146.97,146.9,0.04940001]
[1740434931858,0.04604158,146.93,146.9,0.04940001]
[1740434932058,0.04604158,146.93,146.79,9.4795]
[1740434932463,3.9581,147.09,146.9,0.04658641]
[1740434932661,225.00583033,146.97,146.79,9.4795]
[1740434932862,1.375e-05,146.87,146.79,9.4795]
[1740434933361,1.375e-05,146.87,146.86,6.8104]
[1740434933563,1.375e-05,146.87,146.8,5.34516015]
[1740434934364,1.375e-05,146.87,146.82,0.04967202]
[1740434934565,225.00583033,146.87,146.82,0.04967202]
[1740434934861,24.5081,147.09,146.8,5.34516015]
[1740434934862,225.00583033,146.83,146.8,5.34516015]
[1740434935259,225.00583033,146.81,146.72,181.80599115]
[1740434935457,225.00583033,146.78,146.72,181.80599115]
[1740434935661,225.00583033,146.79,146.72,181.80599115]
[1740434935864,189.6200066,147.08,146.73,178.1]
[1740434936264,225.00583033,146.94,146.74,0.05224784]
[1740434936466,225.00583033,146.96,146.74,1.24963408]
[1740434936665,225.00583033,146.96,146.75,3.94]
[1740434936865,3.9581,147.09,146.76,1.19738624]
[1740434937061,225.00583033,147.0,146.89,6.8086]
[1740434937266,225.00583033,146.99,146.88,178.1]
[1740434937567,225.00583033,146.97,146.88,178.1]
[1740434937864,225.00583033,146.94,146.93,0.04559989]
[1740434938059,225.03435125,146.96,146.93,0.04559989]
[1740434938268,225.00583033,146.95,146.8,1.19692471]
[1740434938466,225.00583033,146.96,146.8,1.19692471]
[1740434938656,0.02852092,146.96,146.93,0.04807868]
[1740434939055,178.1,147.17,146.8,1.19692471]
[1740434939260,225.00583033,147.04,146.95,6.8062]
[1740434939564,225.00583033,147.04,146.93,0.04966075]
[1740434939760,178.1,147.17,146.9,178.08]
[1740434939954,225.00583033,147.04,146.91,3.9676]
[1740434940158,225.00583033,147.08,146.91,3.9676]
[1740434940368,225.00583033,147.12,146.92,8.1323]
[1740434940665,0.9293,147.35,146.93,1.19596732]
[1740434940855,225.00583033,147.22,147.13,6.7978]
[1740434941055,225.00583033,147.14,146.98,191.05107821]
[1740434941364,225.00583033,147.12,147.02,6.8029]
[1740434941565,225.00583033,147.17,147.05,0.04376507]
[1740434941761,0.9293,147.35,147.05,0.04376507]
[1740434941961,0.9293,147.35,147.02,178.08]
[1740434941962,225.00583033,147.22,147.03,21.60514438]
[1740434942257,225.00583033,147.14,147.04,7.8073]
[1740434942563,225.00583033,147.1,147.04,3.9676]
[1740434942761,178.08,147.23,146.95,52.64720555]
[1740434942963,178.08,147.23,146.92,4.1414]
[1740434943161,225.00583033,147.01,146.87,4.0611]
[1740434943358,225.00583033,147.0,146.88,1.19634]
[1740434943559,225.00583033,147.01,146.87,4.0611]
[1740434943765,7.10361134,147.19,146.88,1.19615763]
[1740434944067,178.08,147.23,146.88,1.19615763]
[1740434944068,225.00583033,147.1,146.88,1.19615763]
[1740434944365,225.00583033,147.02,146.93,0.04762409]
[1740434944560,20.55,147.22,146.87,4.0611]
[1740434944762,225.00583033,146.96,146.85,4.052]
[1740434945057,225.00583033,146.87,146.84,72.70715352]
[1740434945258,231.81663033,146.85,146.84,71.80595352]
[1740434945458,231.81663033,146.85,146.84,71.84912918]
[1740434945662,211.9902,147.09,146.84,71.84912918]
[1740434945663,191.5802,147.09,146.84,71.84912918]
[1740434946064,177.56594815,146.85,146.8,9.036464]
[1740434946259,6.8123,146.82,146.8,9.036464]
[1740434946473,177.56594815,146.81,146.8,9.036464]
[1740434946670,184.37864815,146.81,146.8,6.4e-05]
[1740434947064,177.56594815,146.81,146.79,13.29285599]
[1740434947261,6.8136,146.79,146.78,19.91920951]
[1740434947465,177.56594815,146.79,146.78,3.64920951]
[1740434947961,0.0431,146.82,146.77,0.05228724]
[1740434948366,178.02,146.95,146.66,1.19818218]
[1740434948568,177.56594815,146.83,146.66,1.19818218]
[1740434948767,0.0431,146.81,146.78,0.05105034]
[1740434948968,367.40334436,147.05,146.66,1.19818218]
[1740434949173,177.56594815,146.97,146.66,1.19818218]
[1740434949375,177.56594815,146.98,146.9,6.8084]
[1740434949667,178.08,147.15,146.82,178.08]
[1740434949869,177.56594815,147.03,146.83,13.2087097]
[1740434950168,177.56594815,147.05,146.95,0.05189532]
[1740434950368,178.08,147.15,146.95,0.05189532]
[1740434950570,177.56594815,147.04,146.85,1.1968097]
[1740434950870,177.56594815,146.95,146.83,12.0119]
[1740434951071,177.56594815,146.94,146.83,12.0119]
[1740434951373,177.56594815,147.01,146.93,0.04435512]
[1740434951574,177.56594815,147.04,146.97,6.8049]
[1740434951773,177.56594815,147.02,146.96,0.04538472]
[1740434951973,177.56594815,147.03,146.96,0.04538472]
[1740434952169,177.56594815,147.04,146.84,1.19632496]
[1740434952375,178.08,147.15,146.84,1.19632496]
[1740434952577,177.56594815,146.91,146.85,6.8105]
[1740434952777,177.56594815,146.94,146.83,8.1337]
[1740434952977,177.56594815,146.93,146.83,8.1337]
[1740434953169,177.56594815,146.93,146.87,0.04818364]
[1740434953570,189.38334436,147.13,146.87,0.04818364]
[1740434953776,177.56594815,147.05,146.87,0.04818364]
[1740434953975,177.56594815,147.05,146.84,1.19667449]
[1740434954176,178.08,147.26,146.84,195.19667449]
[1740434954382,177.56594815,147.09,146.95,0.05011013]
[1740434954578,177.56594815,147.12,146.95,178.08]
[1740434954775,178.08,147.26,146.96,12.1983]
[1740434954978,178.08,147.26,147.01,0.04935068]
[1740434955176,177.56594815,147.02,147.01,0.04935068]
[1740434955376,177.56594815,147.02,146.86,1.19636853]
[1740434955675,6.8002,147.09,146.85,12.4816]
[1740434955880,177.56594815,146.97,146.93,0.04654798]
[1740434956276,177.56594815,146.94,146.78,178.04]
[1740434956578,198.59,147.13,146.94,0.04304478]
[1740434956885,6.8054,146.97,146.79,6.8132]
[1740434957075,177.52290337,146.84,146.72,8.2894]
[1740434957276,177.52290337,146.82,146.73,6.8162]
[1740434957576,178.04,146.97,146.72,8.2894]
[1740434957780,177.52290337,146.81,146.72,10.87]
[1740434957983,177.52290337,146.79,146.68,182.1322]
[1740434958180,177.52290337,146.77,146.65,186.04229115]
[1740434958381,177.52290337,146.73,146.72,0.0440363]
[1740434958574,178.06,146.84,146.72,0.0440363]
[1740434958779,178.06,146.84,146.65,181.80599115]
[1740434958780,177.56594815,146.73,146.65,181.80599115]
[1740434958972,177.52290337,146.68,146.65,181.80599115]
[1740434959373,0.04304478,146.69,146.65,181.80599115]
[1740434959582,0.04304478,146.69,146.66,0.0435887]
[1740434959781,177.52290337,146.68,146.65,181.80599115]
[1740434960279,177.52290337,146.68,146.67,0.05097814]
[1740434960984,189.38334436,146.68,146.61,113.35757457]
[1740434961184,189.38334436,146.68,146.61,113.33637457]
[1740434961583,6.8215,146.62,146.61,113.33637457]
[1740434961782,6.8215,146.62,146.61,75.48987457]
[1740434961976,6.8215,146.62,146.59,227.25748894]
[1740434961977,189.38334436,146.61,146.59,211.58848894]
[1740434962177,6.8225,146.6,146.59,199.74771203]
[1740434962386,189.38334436,146.61,146.59,199.74771203]
[1740434962781,0.04673988,146.63,146.59,199.74771203]
[1740434963080,0.04673988,146.63,146.21,20.41]
[1740434963286,189.38334436,146.62,146.27,178.18]
[1740434963481,189.38334436,146.61,146.27,178.18]
[1740434963682,196.20534436,146.61,146.6,2.624e-05]
[1740434963879,189.38334436,146.61,146.44,45.21617457]
[1740434964082,189.38334436,146.6,146.27,178.18]
[1740434964287,189.38334436,146.59,146.42,45.16417457]
[1740434964585,367.70334436,146.58,146.27,178.18]
[1740434964783,367.70334436,146.58,146.35,45.16417457]
[1740434964784,6.8281,146.48,146.35,45.16417457]
[1740434964985,0.05119291,146.52,146.34,45.16417457]
[1740434965192,189.38334436,146.51,146.4,0.04865532]
[1740434965386,189.38334436,146.5,146.4,0.04865532]
[1740434965584,0.05136155,146.44,146.4,0.04865532]
[1740434965881,189.38334436,146.43,146.2,7.9606]
[1740434966086,189.38334436,146.43,146.41,0.05200602]
[1740434966287,189.38334436,146.42,146.41,6.02e-06]
[1740434966494,185.45589993,146.44,146.06,178.32]
[1740434966685,194.0,146.41,146.3,45.16417457]
[1740434966885,178.32,146.44,146.32,45.16417457]
[1740434967088,178.32,146.44,146.27,45.16417457]
[1740434967289,194.0,146.43,146.26,45.16417457]
[1740434967486,6.8333,146.37,146.26,45.16417457]
[1740434967790,194.0,146.42,146.06,178.32]
[1740434967992,0.04321958,146.36,146.33,0.05022482]
[1740434968290,194.0,146.41,146.06,178.32]
[1740434968491,194.0,146.41,146.26,45.16417457]
[1740434968689,0.0441509,146.36,146.33,0.05138212]
[1740434968883,0.0441509,146.36,146.33,0.03138212]
[1740434969086,194.0,146.35,146.06,178.32]
[1740434969282,178.32,146.44,146.06,178.32]
[1740434969283,194.0,146.43,146.23,45.16417457]
[1740434969488,194.0,146.42,146.06,178.32]
[1740434969684,194.0,146.41,146.23,45.16417457]
[1740434969893,194.0,146.4,146.06,178.32]
[1740434970189,194.0,146.39,146.06,178.32]
[1740434970385,178.32,146.44,146.32,45.16417457]
[1740434970686,178.32,146.44,146.36,45.16417457]
[1740434970888,178.32,146.44,146.38,45.09606369]
[1740434971090,0.04832354,146.39,146.38,45.09606369]
[1740434971290,0.04832354,146.39,146.37,1.36640021]
[1740434971490,194.0,146.5,146.4,0.04722772]
[1740434972099,214.55,146.5,146.37,1.36640021]
[1740434972395,6.8294,146.45,146.44,4.94e-06]
[1740434972593,0.04980632,146.46,146.37,1.36640021]
[1740434972796,6.8321,146.4,146.37,1.36640021]
[1740434972994,178.7,146.42,146.37,1.36640021]
[1740434973183,178.7,146.51,146.39,45.09606369]
[1740434973386,178.22433837,146.51,146.42,45.09606369]
[1740434973590,7.13224368,146.5,146.37,1.36640021]
[1740434973795,0.05114201,146.48,146.45,0.04682013]
[1740434974191,194.0,146.53,146.37,1.36640021]
[1740434974386,178.7,146.54,146.37,1.36640021]
[1740434974687,0.05087163,146.48,146.45,0.04986787]
[1740434975089,178.7,146.54,146.22,4.0753]
[1740434975299,178.7,146.54,146.4,45.09606369]
[1740434975586,178.7,146.54,146.22,4.0753]
[1740434975587,194.0,146.53,146.22,4.0753]
[1740434975789,194.0,146.52,146.38,45.09606369]
[1740434975993,194.0,146.52,146.22,4.0753]
[1740434975994,194.0,146.52,146.39,45.09606369]
[1740434976194,194.0,146.52,146.4,45.09606369]
[1740434976392,0.05053619,146.47,146.44,45.14601803]
[1740434976589,0.05053619,146.47,146.22,4.0753]
[1740434976791,178.7,146.54,146.46,45.09606369]
[1740434976993,178.7,146.54,146.23,211.51]
[1740434977189,178.7,146.54,146.43,45.09606369]
[1740434977387,178.7,146.54,146.44,45.09606369]
[1740434977591,178.7,146.54,146.34,6.8345]
[1740434977792,0.05229926,146.5,146.48,0.0462901]
[1740434977993,0.05229926,146.5,146.48,9.01e-05]
[1740434978195,6.828,146.49,146.24,7.9734]
[1740434978492,178.7,146.54,146.44,45.09606369]
[1740434978699,178.7,146.54,146.24,7.9734]
[1740434978890,372.7,146.54,146.24,7.9734]
[1740434979088,372.7,146.54,146.35,45.09606369]
[1740434979293,0.04735335,146.4,146.38,0.05026467]
[1740434979492,20.55,146.52,146.24,7.9734]
[1740434979692,214.55,146.51,146.29,45.09606369]
[1740434979891,6.8322,146.39,146.38,9.27e-06]
[1740434980100,185.5522,146.39,146.38,9.27e-06]
[1740434980295,178.72,146.39,146.11,12.2653]
[1740434980599,178.72,146.39,146.25,45.09606369]
[1740434980796,178.72,146.39,146.24,45.09606369]
[1740434980997,6.8389,146.25,146.2,45.09606369]
[1740434981301,6.8389,146.25,146.11,12.2653]
[1740434981302,0.05089941,146.26,146.24,0.04808706]
[1740434981500,178.77089941,146.26,146.05,91.82853467]
[1740434981692,178.72,146.26,146.14,45.09606369]
[1740434982096,6.8397,146.24,146.2,45.09606369]
[1740434982296,178.72,146.26,146.16,45.09606369]
[1740434982493,178.72,146.26,146.13,45.09606369]
[1740434982703,178.72,146.26,146.12,45.09606369]
[1740434982903,0.05087926,146.22,146.08,45.09606369]
[1740434983102,0.05087926,146.22,145.91,7.9358]
[1740434983304,6.8468,146.08,146.04,45.09606369]
[1740434983500,6.8468,146.08,146.05,45.09606369]
[1740434983695,214.55,146.25,145.91,7.9358]
[1740434983901,6.8466,146.09,146.05,45.09606369]
[1740434984304,6.8467,146.08,146.07,0.0421298]
[1740434984508,0.0461559,146.09,145.99,45.09606369]
[1740434984806,178.78,146.11,145.99,45.09606369]
[1740434985198,178.78,146.11,146.04,45.09606369]
[1740434985405,186.04884875,146.22,146.09,45.09606369]
[1740434985603,178.9,146.24,146.1,45.09606369]
[1740434985805,178.9,146.24,145.91,7.9358]
[1740434986007,178.9,146.24,146.06,45.09606369]
[1740434986008,7.14603511,146.23,146.06,45.09606369]
[1740434986201,7.14603511,146.23,145.92,6.8538]
[1740434986398,41.06,146.22,145.91,7.9358]
[1740434986604,194.0,146.21,145.99,45.09606369]
[1740434986800,7.14603511,146.23,145.99,45.09606369]
[1740434987001,7.14603511,146.23,146.02,45.09606369]
[1740434987205,0.04917255,146.11,146.09,5.934e-05]
[1740434987612,7.14603511,146.23,146.06,1.36930028]
[1740434987808,178.9,146.24,146.06,1.36930028]
[1740434988009,7.14872638,146.22,146.06,1.33910028]
[1740434988213,7.14872638,146.22,145.91,7.9358]
[1740434988415,0.044008,146.15,146.0,45.09606369]
[1740434988709,194.0,146.14,145.91,7.9358]
[1740434988917,7.14872638,146.22,145.98,45.09606369]
[1740434989110,0.04435038,146.09,145.98,45.09606369]
[1740434989307,179.02435038,146.09,145.91,7.9358]
[1740434989520,178.98,146.09,145.97,45.09606369]
[1740434989715,178.98,146.09,145.95,45.09606369]
[1740434990018,0.04307321,146.01,145.93,45.09606369]
[1740434990219,0.04307321,146.01,145.81,12.3949]
[1740434990415,20.55,146.17,145.98,45.09606369]
[1740434990612,20.55,146.15,145.96,45.09606369]
[1740434991012,194.0,146.16,146.0,45.09606369]
[1740434991214,178.98,146.19,145.81,12.3949]
[1740434991408,178.98,146.19,146.0,45.09606369]
[1740434991614,20.55,146.16,145.97,45.09606369]
[1740434991817,0.05229218,146.01,145.83,6.8584]
[1740434992014,179.08,146.05,145.94,45.09606369]
[1740434992320,179.08,146.05,145.87,34.33566369]
[1740434992509,6.8561,145.88,145.76,6.8614]
[1740434992713,20.55,146.02,145.82,34.33566369]
[1740434992915,20.55,146.0,145.8,34.33566369]
[1740434993111,0.04748294,145.83,145.79,34.33566369]
[1740434993518,179.08,145.88,145.68,12.2242]
[1740434993717,0.04357152,145.82,145.79,34.33566369]
[1740434993918,0.04357152,145.82,145.76,34.33566369]
[1740434994115,6.8613,145.77,145.75,34.33566369]
[1740434994317,235.06,145.87,145.59,0.13737207]
[1740434994514,20.59852492,145.8,145.62,22.93966369]
[1740434994715,214.59852492,145.8,145.59,23.07703576]
[1740434995021,6.8693,145.6,145.59,7.207e-05]
[1740434995216,179.2,145.64,145.37,8.1604]
[1740434995416,179.2,145.64,145.54,22.93966369]
[1740434995618,20.51,145.77,145.37,12.0267]
[1740434995619,179.2,145.77,145.37,12.0267]
[1740434995817,179.2,145.77,145.63,22.93966369]
[1740434996019,179.2,145.77,145.38,1.20841472]
[1740434996020,20.55,145.76,145.38,1.20841472]
[1740434996227,0.05101957,145.58,145.5,22.93966369]
[1740434996523,6.8737,145.51,145.37,12.0267]
[1740434996826,179.2,145.61,145.46,12.49856369]
[1740434997028,179.2,145.61,145.44,12.49856369]
[1740434997222,179.2,145.61,145.45,1.37504297]
[1740434997425,0.04587803,145.55,145.23,179.38]
[1740434997621,0.04587803,145.55,145.39,12.49856369]
[1740434997925,20.55,145.57,145.24,12.1959]
[1740434998127,6.8783,145.41,145.24,12.1959]
[1740434998322,179.38,145.47,145.24,12.1959]
[1740434998624,179.38,145.47,145.4,2.10006369]
[1740434998825,179.38,145.57,145.44,2.10006369]
[1740434999024,179.38,145.57,145.46,2.10006369]
[1740434999220,194.0,145.69,145.24,12.1959]
[1740434999221,179.38,145.58,145.47,1.37485392]
[1740434999421,0.05164302,145.52,145.47,1.33345392]
[1740434999827,0.05164302,145.52,145.25,8.2114]
[1740435000224,1.21197897,145.57,145.36,4.036e-05]
[1740435000426,13.7438,145.55,145.16,4.0783]
[1740435000627,0.04382039,145.45,145.31,2.10006369]
[1740435000925,179.54,145.44,145.16,4.0783]
[1740435001132,179.54,145.44,145.29,2.10006369]
[1740435001332,0.05106173,145.39,145.25,2.10006369]
[1740435001529,0.05106173,145.39,145.1,8.0938]
[1740435001530,0.05106173,145.39,145.2,2.10006369]
[1740435001830,1057.33111472,145.43,145.0,3.8816]
[1740435002028,0.05070872,145.31,145.1,2.10006369]
[1740435002324,0.05070872,145.31,145.0,7.9421]
[1740435002325,179.54,145.3,145.07,2.10006369]
[1740435002531,179.54,145.3,145.01,2.10006369]
[1740435002729,1.20936157,145.29,145.03,2.10006369]
[1740435003029,0.04472511,145.2,144.83,7.9421]
[1740435003231,0.04472511,145.2,145.04,2.10006369]
[1740435003430,200.09,145.3,145.05,2.10006369]
[1740435003631,7.19826249,145.2,145.03,2.10006369]
[1740435003828,0.04482978,145.13,145.04,2.10006369]
[1740435004032,0.04482978,145.13,144.82,92.58861605]
[1740435004233,7.19925525,145.22,144.39,20.51]
[1740435004437,7.19925525,145.22,144.32,535.67543316]
[1740435004438,1.20741315,145.21,144.32,535.67543316]
[1740435004732,0.04834818,144.99,144.39,1.21700522]
[1740435005036,1057.6,144.98,144.23,101.96556347]
[1740435005331,1061.21120269,144.97,143.69,139.2125]
[1740435005539,1427.76,145.22,143.24,179.78]
[1740435005540,0.04607272,144.7,143.24,179.78]
[1740435005839,0.04607272,144.7,143.21,6.828]
[1740435005840,7.12198832,144.84,143.67,759.6]
[1740435006031,31.23058135,144.97,143.68,4.0508]
[1740435006032,1.20741315,144.83,143.68,4.0508]
[1740435006232,16.35357638,144.69,144.15,266.61804774]
[1740435006430,16.35357638,144.69,144.04,444.3634129]
[1740435006629,16.35357638,144.69,143.93,269.23292128]
[1740435006829,1.20885523,144.68,144.04,13.8873]
[1740435007030,9.62802896,144.68,144.02,676.49073032]
[1740435007232,20.7,144.59,143.93,199.96292128]
[1740435007437,9.62802896,144.67,143.93,876.4536516]
[1740435007732,9.62802896,144.67,143.49,180.2]
[1740435007733,0.04499066,144.36,143.49,180.2]
[1740435007938,8.41917373,144.67,143.63,13.927]
[1740435007939,180.2,144.42,143.63,13.927]
[1740435008133,16.35357638,144.35,143.8,180.2]
[1740435008330,1.20885523,144.34,143.84,676.49073032]
[1740435008531,16.35357638,144.35,143.85,0.20523366]
[1740435008733,196.55357638,144.33,143.26,180.2]
[1740435008936,196.55357638,144.33,143.53,676.49073032]
[1740435008937,0.04869359,144.1,143.53,676.49073032]
[1740435009130,0.04869359,144.1,143.15,8.123]
[1740435009334,41.21,144.08,143.16,676.49073032]
[1740435009637,0.04642395,143.64,142.99,676.49073032]
[1740435009831,41.21,143.62,142.6,180.68]
[1740435010135,1.20376629,143.61,142.61,1.20847625]
[1740435010335,41.21,143.59,142.61,1.20847625]
[1740435010534,41.21,143.59,142.37,1062.9]
[1740435010535,0.04759895,143.12,142.51,1.20847625]
[1740435010736,0.04759895,143.12,142.62,1.20847625]
[1740435010934,41.21,143.21,142.7,676.49073032]
[1740435011141,41.21,143.21,142.71,1.20847625]
[1740435011328,0.0512775,142.88,142.63,1.20847625]
[1740435011530,0.0512775,142.88,142.5,0.3738816]
[1740435011829,0.0512775,142.88,141.86,70.5043]
[1740435011830,41.21,142.87,142.07,180.68]
[1740435012035,0.05135244,142.7,142.43,676.49073032]
[1740435012334,0.05135244,142.7,142.3,181.46]
[1740435012534,41.21,142.87,142.3,181.46]
[1740435012733,41.21,142.87,142.31,1.19660433]
[1740435012931,5.569e-05,142.51,142.34,676.49073032]
[1740435013133,5.569e-05,142.51,142.31,1.19660433]
[1740435013134,5.569e-05,142.51,141.83,21.1551]
[1740435013330,41.21,142.87,142.58,0.05377553]
[1740435013537,2.61163403,142.86,141.91,181.46]
[1740435013731,2.61163403,142.86,141.92,181.46]
[1740435013732,20.7,142.77,141.92,181.46]
[1740435013936,20.7,142.75,141.81,181.46]
[1740435014134,1.21629997,142.74,141.82,186.66162468]
[1740435014333,20.7,142.75,141.83,182.64992468]
[1740435014639,1.4012471,142.73,141.83,163.01992468]